{"text_format":"3","workbook":"xlsx","n_sheets":4,"sheets":["ОҚИҒАЛАР","КҮНТІЗБЕ","БАСЫП ШЫҒАРУ НҰСҚАСЫ","ӘКІМШІ"],"not_rendered":{"defined_names":18},"read":"whole","date_system":"1900"}

{"sheet":"ОҚИҒАЛАР","index":0,"n_rows":38,"n_cols":5,"rows_kept":38}
[]
[null,"АЙЛЫҚ ҚАУЫМДАСТЫҚ"]
[null,"ОҚИҒА ЖОСПАРЛАУШЫСЫ"]
[]
[]
[]
[]
[null,"КҮНІ","КҮН","АЙ","ОҚИҒА АТЫ"]
[null,"2016-07-01",{"$f":"IF(ISBLANK(кесте_оқиғалары[[#This Row],[КҮНІ]]),\"\",UPPER(TEXT(кесте_оқиғалары[[#This Row],[КҮНІ]],\"ДДД\")))","v":"ЖҰМ"},{"$f":"IF(ISBLANK(кесте_оқиғалары[[#This Row],[КҮНІ]]),\"\",UPPER(TEXT(кесте_оқиғалары[[#This Row],[КҮНІ]],\"МММ\")))","v":"ШІЛ"},"Қауымдастық бақшасы"]
[null,"2016-07-01",{"$f":"IF(ISBLANK(кесте_оқиғалары[[#This Row],[КҮНІ]]),\"\",UPPER(TEXT(кесте_оқиғалары[[#This Row],[КҮНІ]],\"ДДД\")))","v":"ЖҰМ"},{"$f":"IF(ISBLANK(кесте_оқиғалары[[#This Row],[КҮНІ]]),\"\",UPPER(TEXT(кесте_оқиғалары[[#This Row],[КҮНІ]],\"МММ\")))","v":"ШІЛ"},"Қалалық кеңес"]
[null,"2016-07-02",{"$f":"IF(ISBLANK(кесте_оқиғалары[[#This Row],[КҮНІ]]),\"\",UPPER(TEXT(кесте_оқиғалары[[#This Row],[КҮНІ]],\"ДДД\")))","v":"СБ"},{"$f":"IF(ISBLANK(кесте_оқиғалары[[#This Row],[КҮНІ]]),\"\",UPPER(TEXT(кесте_оқиғалары[[#This Row],[КҮНІ]],\"МММ\")))","v":"ШІЛ"},"Қауымдастық бақшасы"]
[null,"2016-07-03",{"$f":"IF(ISBLANK(кесте_оқиғалары[[#This Row],[КҮНІ]]),\"\",UPPER(TEXT(кесте_оқиғалары[[#This Row],[КҮНІ]],\"ДДД\")))","v":"ЖС"},{"$f":"IF(ISBLANK(кесте_оқиғалары[[#This Row],[КҮНІ]]),\"\",UPPER(TEXT(кесте_оқиғалары[[#This Row],[КҮНІ]],\"МММ\")))","v":"ШІЛ"},"Саябақтағы фильмдер кеші"]
[null,"2016-07-08",{"$f":"IF(ISBLANK(кесте_оқиғалары[[#This Row],[КҮНІ]]),\"\",UPPER(TEXT(кесте_оқиғалары[[#This Row],[КҮНІ]],\"ДДД\")))","v":"ЖҰМ"},{"$f":"IF(ISBLANK(кесте_оқиғалары[[#This Row],[КҮНІ]]),\"\",UPPER(TEXT(кесте_оқиғалары[[#This Row],[КҮНІ]],\"МММ\")))","v":"ШІЛ"},"Қалалық кеңес"]
[null,"2016-07-11",{"$f":"IF(ISBLANK(кесте_оқиғалары[[#This Row],[КҮНІ]]),\"\",UPPER(TEXT(кесте_оқиғалары[[#This Row],[КҮНІ]],\"ДДД\")))","v":"ДҮЙ"},{"$f":"IF(ISBLANK(кесте_оқиғалары[[#This Row],[КҮНІ]]),\"\",UPPER(TEXT(кесте_оқиғалары[[#This Row],[КҮНІ]],\"МММ\")))","v":"ШІЛ"},"Сауда палатасы Екінші таңғы ас"]
[null,"2016-07-12",{"$f":"IF(ISBLANK(кесте_оқиғалары[[#This Row],[КҮНІ]]),\"\",UPPER(TEXT(кесте_оқиғалары[[#This Row],[КҮНІ]],\"ДДД\")))","v":"СЕЙ"},{"$f":"IF(ISBLANK(кесте_оқиғалары[[#This Row],[КҮНІ]]),\"\",UPPER(TEXT(кесте_оқиғалары[[#This Row],[КҮНІ]],\"МММ\")))","v":"ШІЛ"},"Антиквариаттар көрсетілімі"]
[null,"2016-07-14",{"$f":"IF(ISBLANK(кесте_оқиғалары[[#This Row],[КҮНІ]]),\"\",UPPER(TEXT(кесте_оқиғалары[[#This Row],[КҮНІ]],\"ДДД\")))","v":"БЕЙ"},{"$f":"IF(ISBLANK(кесте_оқиғалары[[#This Row],[КҮНІ]]),\"\",UPPER(TEXT(кесте_оқиғалары[[#This Row],[КҮНІ]],\"МММ\")))","v":"ШІЛ"},"Қауымдастық жұмыс орны"]
[null,"2016-07-15",{"$f":"IF(ISBLANK(кесте_оқиғалары[[#This Row],[КҮНІ]]),\"\",UPPER(TEXT(кесте_оқиғалары[[#This Row],[КҮНІ]],\"ДДД\")))","v":"ЖҰМ"},{"$f":"IF(ISBLANK(кесте_оқиғалары[[#This Row],[КҮНІ]]),\"\",UPPER(TEXT(кесте_оқиғалары[[#This Row],[КҮНІ]],\"МММ\")))","v":"ШІЛ"},"Қалалық кеңес"]
[null,"2016-07-19",{"$f":"IF(ISBLANK(кесте_оқиғалары[[#This Row],[КҮНІ]]),\"\",UPPER(TEXT(кесте_оқиғалары[[#This Row],[КҮНІ]],\"ДДД\")))","v":"СЕЙ"},{"$f":"IF(ISBLANK(кесте_оқиғалары[[#This Row],[КҮНІ]]),\"\",UPPER(TEXT(кесте_оқиғалары[[#This Row],[КҮНІ]],\"МММ\")))","v":"ШІЛ"},"Стратегиялық жоспарлау жұмыс орны"]
[null,"2016-07-20",{"$f":"IF(ISBLANK(кесте_оқиғалары[[#This Row],[КҮНІ]]),\"\",UPPER(TEXT(кесте_оқиғалары[[#This Row],[КҮНІ]],\"ДДД\")))","v":"СӘР"},{"$f":"IF(ISBLANK(кесте_оқиғалары[[#This Row],[КҮНІ]]),\"\",UPPER(TEXT(кесте_оқиғалары[[#This Row],[КҮНІ]],\"МММ\")))","v":"ШІЛ"},"Саябақты тазалау"]
[null,"2016-07-22",{"$f":"IF(ISBLANK(кесте_оқиғалары[[#This Row],[КҮНІ]]),\"\",UPPER(TEXT(кесте_оқиғалары[[#This Row],[КҮНІ]],\"ДДД\")))","v":"ЖҰМ"},{"$f":"IF(ISBLANK(кесте_оқиғалары[[#This Row],[КҮНІ]]),\"\",UPPER(TEXT(кесте_оқиғалары[[#This Row],[КҮНІ]],\"МММ\")))","v":"ШІЛ"},"Қалалық кеңес"]
[null,"2016-07-26",{"$f":"IF(ISBLANK(кесте_оқиғалары[[#This Row],[КҮНІ]]),\"\",UPPER(TEXT(кесте_оқиғалары[[#This Row],[КҮНІ]],\"ДДД\")))","v":"СЕЙ"},{"$f":"IF(ISBLANK(кесте_оқиғалары[[#This Row],[КҮНІ]]),\"\",UPPER(TEXT(кесте_оқиғалары[[#This Row],[КҮНІ]],\"МММ\")))","v":"ШІЛ"},"Қаланың іскерлік орталығына саяхат"]
[null,"2016-07-26",{"$f":"IF(ISBLANK(кесте_оқиғалары[[#This Row],[КҮНІ]]),\"\",UPPER(TEXT(кесте_оқиғалары[[#This Row],[КҮНІ]],\"ДДД\")))","v":"СЕЙ"},{"$f":"IF(ISBLANK(кесте_оқиғалары[[#This Row],[КҮНІ]]),\"\",UPPER(TEXT(кесте_оқиғалары[[#This Row],[КҮНІ]],\"МММ\")))","v":"ШІЛ"},"Бірнеше сыраханаға бару"]
[null,"2016-07-29",{"$f":"IF(ISBLANK(кесте_оқиғалары[[#This Row],[КҮНІ]]),\"\",UPPER(TEXT(кесте_оқиғалары[[#This Row],[КҮНІ]],\"ДДД\")))","v":"ЖҰМ"},{"$f":"IF(ISBLANK(кесте_оқиғалары[[#This Row],[КҮНІ]]),\"\",UPPER(TEXT(кесте_оқиғалары[[#This Row],[КҮНІ]],\"МММ\")))","v":"ШІЛ"},"Қалалық кеңес"]
[null,"2016-08-05",{"$f":"IF(ISBLANK(кесте_оқиғалары[[#This Row],[КҮНІ]]),\"\",UPPER(TEXT(кесте_оқиғалары[[#This Row],[КҮНІ]],\"ДДД\")))","v":"ЖҰМ"},{"$f":"IF(ISBLANK(кесте_оқиғалары[[#This Row],[КҮНІ]]),\"\",UPPER(TEXT(кесте_оқиғалары[[#This Row],[КҮНІ]],\"МММ\")))","v":"ТАМ"},"Қалалық кеңес"]
[null,"2016-08-10",{"$f":"IF(ISBLANK(кесте_оқиғалары[[#This Row],[КҮНІ]]),\"\",UPPER(TEXT(кесте_оқиғалары[[#This Row],[КҮНІ]],\"ДДД\")))","v":"СӘР"},{"$f":"IF(ISBLANK(кесте_оқиғалары[[#This Row],[КҮНІ]]),\"\",UPPER(TEXT(кесте_оқиғалары[[#This Row],[КҮНІ]],\"МММ\")))","v":"ТАМ"},"Саябақты тазалау"]
[null,"2016-08-12",{"$f":"IF(ISBLANK(кесте_оқиғалары[[#This Row],[КҮНІ]]),\"\",UPPER(TEXT(кесте_оқиғалары[[#This Row],[КҮНІ]],\"ДДД\")))","v":"ЖҰМ"},{"$f":"IF(ISBLANK(кесте_оқиғалары[[#This Row],[КҮНІ]]),\"\",UPPER(TEXT(кесте_оқиғалары[[#This Row],[КҮНІ]],\"МММ\")))","v":"ТАМ"},"Қалалық кеңес"]
[null,"2016-08-13",{"$f":"IF(ISBLANK(кесте_оқиғалары[[#This Row],[КҮНІ]]),\"\",UPPER(TEXT(кесте_оқиғалары[[#This Row],[КҮНІ]],\"ДДД\")))","v":"СБ"},{"$f":"IF(ISBLANK(кесте_оқиғалары[[#This Row],[КҮНІ]]),\"\",UPPER(TEXT(кесте_оқиғалары[[#This Row],[КҮНІ]],\"МММ\")))","v":"ТАМ"},"Қауымдастық бақшасы"]
[null,"2016-09-01",{"$f":"IF(ISBLANK(кесте_оқиғалары[[#This Row],[КҮНІ]]),\"\",UPPER(TEXT(кесте_оқиғалары[[#This Row],[КҮНІ]],\"ДДД\")))","v":"БЕЙ"},{"$f":"IF(ISBLANK(кесте_оқиғалары[[#This Row],[КҮНІ]]),\"\",UPPER(TEXT(кесте_оқиғалары[[#This Row],[КҮНІ]],\"МММ\")))","v":"ҚЫР"},"Жоспарлық-қаржылық комиссия"]
[null,"2016-10-01",{"$f":"IF(ISBLANK(кесте_оқиғалары[[#This Row],[КҮНІ]]),\"\",UPPER(TEXT(кесте_оқиғалары[[#This Row],[КҮНІ]],\"ДДД\")))","v":"СБ"},{"$f":"IF(ISBLANK(кесте_оқиғалары[[#This Row],[КҮНІ]]),\"\",UPPER(TEXT(кесте_оқиғалары[[#This Row],[КҮНІ]],\"МММ\")))","v":"ҚАЗ"},"Жоспарлық-қаржылық комиссия"]
[null,"2016-11-03",{"$f":"IF(ISBLANK(кесте_оқиғалары[[#This Row],[КҮНІ]]),\"\",UPPER(TEXT(кесте_оқиғалары[[#This Row],[КҮНІ]],\"ДДД\")))","v":"БЕЙ"},{"$f":"IF(ISBLANK(кесте_оқиғалары[[#This Row],[КҮНІ]]),\"\",UPPER(TEXT(кесте_оқиғалары[[#This Row],[КҮНІ]],\"МММ\")))","v":"ҚАР"},"Жоспарлық-қаржылық комиссия"]
[null,"2016-12-01",{"$f":"IF(ISBLANK(кесте_оқиғалары[[#This Row],[КҮНІ]]),\"\",UPPER(TEXT(кесте_оқиғалары[[#This Row],[КҮНІ]],\"ДДД\")))","v":"БЕЙ"},{"$f":"IF(ISBLANK(кесте_оқиғалары[[#This Row],[КҮНІ]]),\"\",UPPER(TEXT(кесте_оқиғалары[[#This Row],[КҮНІ]],\"МММ\")))","v":"ЖЕЛ"},"Жоспарлық-қаржылық комиссия"]
[null,"2017-01-01",{"$f":"IF(ISBLANK(кесте_оқиғалары[[#This Row],[КҮНІ]]),\"\",UPPER(TEXT(кесте_оқиғалары[[#This Row],[КҮНІ]],\"ДДД\")))","v":"ЖС"},{"$f":"IF(ISBLANK(кесте_оқиғалары[[#This Row],[КҮНІ]]),\"\",UPPER(TEXT(кесте_оқиғалары[[#This Row],[КҮНІ]],\"МММ\")))","v":"ҚАҢ"},"Жоспарлық-қаржылық комиссия"]
[null,"2017-02-02",{"$f":"IF(ISBLANK(кесте_оқиғалары[[#This Row],[КҮНІ]]),\"\",UPPER(TEXT(кесте_оқиғалары[[#This Row],[КҮНІ]],\"ДДД\")))","v":"БЕЙ"},{"$f":"IF(ISBLANK(кесте_оқиғалары[[#This Row],[КҮНІ]]),\"\",UPPER(TEXT(кесте_оқиғалары[[#This Row],[КҮНІ]],\"МММ\")))","v":"АҚП"},"Жоспарлық-қаржылық комиссия"]
[null,"2017-03-02",{"$f":"IF(ISBLANK(кесте_оқиғалары[[#This Row],[КҮНІ]]),\"\",UPPER(TEXT(кесте_оқиғалары[[#This Row],[КҮНІ]],\"ДДД\")))","v":"БЕЙ"},{"$f":"IF(ISBLANK(кесте_оқиғалары[[#This Row],[КҮНІ]]),\"\",UPPER(TEXT(кесте_оқиғалары[[#This Row],[КҮНІ]],\"МММ\")))","v":"НАУ"},"Жоспарлық-қаржылық комиссия"]
[null,"2017-04-01",{"$f":"IF(ISBLANK(кесте_оқиғалары[[#This Row],[КҮНІ]]),\"\",UPPER(TEXT(кесте_оқиғалары[[#This Row],[КҮНІ]],\"ДДД\")))","v":"СБ"},{"$f":"IF(ISBLANK(кесте_оқиғалары[[#This Row],[КҮНІ]]),\"\",UPPER(TEXT(кесте_оқиғалары[[#This Row],[КҮНІ]],\"МММ\")))","v":"СӘУ"},"Жоспарлық-қаржылық комиссия"]
[null,"2017-05-01",{"$f":"IF(ISBLANK(кесте_оқиғалары[[#This Row],[КҮНІ]]),\"\",UPPER(TEXT(кесте_оқиғалары[[#This Row],[КҮНІ]],\"ДДД\")))","v":"ДҮЙ"},{"$f":"IF(ISBLANK(кесте_оқиғалары[[#This Row],[КҮНІ]]),\"\",UPPER(TEXT(кесте_оқиғалары[[#This Row],[КҮНІ]],\"МММ\")))","v":"МАМ"},"Жоспарлық-қаржылық комиссия"]
[null,"2017-06-01",{"$f":"IF(ISBLANK(кесте_оқиғалары[[#This Row],[КҮНІ]]),\"\",UPPER(TEXT(кесте_оқиғалары[[#This Row],[КҮНІ]],\"ДДД\")))","v":"БЕЙ"},{"$f":"IF(ISBLANK(кесте_оқиғалары[[#This Row],[КҮНІ]]),\"\",UPPER(TEXT(кесте_оқиғалары[[#This Row],[КҮНІ]],\"МММ\")))","v":"МАУ"},"Жоспарлық-қаржылық комиссия"]
[null,"2017-06-02",{"$f":"IF(ISBLANK(кесте_оқиғалары[[#This Row],[КҮНІ]]),\"\",UPPER(TEXT(кесте_оқиғалары[[#This Row],[КҮНІ]],\"ДДД\")))","v":"ЖҰМ"},{"$f":"IF(ISBLANK(кесте_оқиғалары[[#This Row],[КҮНІ]]),\"\",UPPER(TEXT(кесте_оқиғалары[[#This Row],[КҮНІ]],\"МММ\")))","v":"МАУ"},"Қалалық кеңес"]

{"sheet":"КҮНТІЗБЕ","index":1,"n_rows":35,"n_cols":21,"rows_kept":35,"merged":[[1,5,1,11],[30,8,34,20]]}
[]
[null,null,2016,null,null,{"$f":"LOOKUP(Ай_нөмірі,кесте_айлары[НӨМІР],кесте_айлары[АЙ])","v":"ШІЛДЕ"}]
[null,null,7,null,null,{"$f":"DATE(Жылды_көру,Ай_нөмірі,1)","v":"2016-07-01"},null,null,{"$f":"WEEKDAY(Басталу_күні)","v":6}]
[null,null,"ДС",null,null,"Сс",null,null,"СР",null,null,"БС",null,null,"Жм",null,null,"Сн",null,null,"ЖС"]
[]
[null,null,{"$f":"Басталу_күні-(WEEKDAY(Басталу_күні)-2)+{0;1;2;3;4;5}*7 +{1,2,3,4,5,6,7}-3+COLUMN(B1)","v":"2016-06-27"},null,null,{"$f":"Басталу_күні-(WEEKDAY(Басталу_күні)-2)+{0;1;2;3;4;5}*7 +{1,2,3,4,5,6,7}-3+COLUMN(C1)","v":"2016-06-28"},null,null,{"$f":"Басталу_күні-(WEEKDAY(Басталу_күні)-2)+{0;1;2;3;4;5}*7 +{1,2,3,4,5,6,7}-3+COLUMN(D1)","v":"2016-06-29"},null,null,{"$f":"Басталу_күні-(WEEKDAY(Басталу_күні)-2)+{0;1;2;3;4;5}*7 +{1,2,3,4,5,6,7}-3+COLUMN(E1)","v":"2016-06-30"},null,null,{"$f":"Басталу_күні-(WEEKDAY(Басталу_күні)-2)+{0;1;2;3;4;5}*7 +{1,2,3,4,5,6,7}-3+COLUMN(F1)","v":"2016-07-01"},null,null,{"$f":"Басталу_күні-(WEEKDAY(Басталу_күні)-2)+{0;1;2;3;4;5}*7 +{1,2,3,4,5,6,7}-3+COLUMN(G1)","v":"2016-07-02"},null,null,{"$f":"Басталу_күні-(WEEKDAY(Басталу_күні)-2)+{0;1;2;3;4;5}*7 +{1,2,3,4,5,6,7}-3+COLUMN(H1)","v":"2016-07-03"}]
[null,null,{"$f":"IFERROR(INDEX(кесте_оқиғалары[],SMALL(IF(Күндер=C$6,ROW(Күндер)),ROW(1:1))-Кесте_жолының_басы,4),\"\")","v":""},null,null,{"$f":"IFERROR(INDEX(кесте_оқиғалары[],SMALL(IF(Күндер=F$6,ROW(Күндер)),ROW(1:1))-Кесте_жолының_басы,4),\"\")","v":""},null,null,{"$f":"IFERROR(INDEX(кесте_оқиғалары[],SMALL(IF(Күндер=I$6,ROW(Күндер)),ROW(1:1))-Кесте_жолының_басы,4),\"\")","v":""},null,null,{"$f":"IFERROR(INDEX(кесте_оқиғалары[],SMALL(IF(Күндер=L$6,ROW(Күндер)),ROW(1:1))-Кесте_жолының_басы,4),\"\")","v":""},null,null,{"$f":"IFERROR(INDEX(кесте_оқиғалары[],SMALL(IF(Күндер=O$6,ROW(Күндер)),ROW(1:1))-Кесте_жолының_басы,4),\"\")","v":"Қауымдастық бақшасы"},null,null,{"$f":"IFERROR(INDEX(кесте_оқиғалары[],SMALL(IF(Күндер=R$6,ROW(Күндер)),ROW(1:1))-Кесте_жолының_басы,4),\"\")","v":"Қауымдастық бақшасы"},null,null,{"$f":"IFERROR(INDEX(кесте_оқиғалары[],SMALL(IF(Күндер=U$6,ROW(Күндер)),ROW(1:1))-Кесте_жолының_басы,4),\"\")","v":"Саябақтағы фильмдер кеші"}]
[null,null,{"$f":"IFERROR(INDEX(кесте_оқиғалары[],SMALL(IF(Күндер=C$6,ROW(Күндер)),ROW(2:2))-Кесте_жолының_басы,4),\"\")","v":""},null,null,{"$f":"IFERROR(INDEX(кесте_оқиғалары[],SMALL(IF(Күндер=F$6,ROW(Күндер)),ROW(2:2))-Кесте_жолының_басы,4),\"\")","v":""},null,null,{"$f":"IFERROR(INDEX(кесте_оқиғалары[],SMALL(IF(Күндер=I$6,ROW(Күндер)),ROW(2:2))-Кесте_жолының_басы,4),\"\")","v":""},null,null,{"$f":"IFERROR(INDEX(кесте_оқиғалары[],SMALL(IF(Күндер=L$6,ROW(Күндер)),ROW(2:2))-Кесте_жолының_басы,4),\"\")","v":""},null,null,{"$f":"IFERROR(INDEX(кесте_оқиғалары[],SMALL(IF(Күндер=O$6,ROW(Күндер)),ROW(2:2))-Кесте_жолының_басы,4),\"\")","v":"Қалалық кеңес"},null,null,{"$f":"IFERROR(INDEX(кесте_оқиғалары[],SMALL(IF(Күндер=R$6,ROW(Күндер)),ROW(2:2))-Кесте_жолының_басы,4),\"\")","v":""},null,null,{"$f":"IFERROR(INDEX(кесте_оқиғалары[],SMALL(IF(Күндер=U$6,ROW(Күндер)),ROW(2:2))-Кесте_жолының_басы,4),\"\")","v":""}]
[null,null,{"$f":"IFERROR(INDEX(кесте_оқиғалары[],SMALL(IF(Күндер=C$6,ROW(Күндер)),ROW(3:3))-Кесте_жолының_басы,4),\"\")","v":""},null,null,{"$f":"IFERROR(INDEX(кесте_оқиғалары[],SMALL(IF(Күндер=F$6,ROW(Күндер)),ROW(3:3))-Кесте_жолының_басы,4),\"\")","v":""},null,null,{"$f":"IFERROR(INDEX(кесте_оқиғалары[],SMALL(IF(Күндер=I$6,ROW(Күндер)),ROW(3:3))-Кесте_жолының_басы,4),\"\")","v":""},null,null,{"$f":"IFERROR(INDEX(кесте_оқиғалары[],SMALL(IF(Күндер=L$6,ROW(Күндер)),ROW(3:3))-Кесте_жолының_басы,4),\"\")","v":""},null,null,{"$f":"IFERROR(INDEX(кесте_оқиғалары[],SMALL(IF(Күндер=O$6,ROW(Күндер)),ROW(3:3))-Кесте_жолының_басы,4),\"\")","v":""},null,null,{"$f":"IFERROR(INDEX(кесте_оқиғалары[],SMALL(IF(Күндер=R$6,ROW(Күндер)),ROW(3:3))-Кесте_жолының_басы,4),\"\")","v":""},null,null,{"$f":"IFERROR(INDEX(кесте_оқиғалары[],SMALL(IF(Күндер=U$6,ROW(Күндер)),ROW(3:3))-Кесте_жолының_басы,4),\"\")","v":""}]
[null,null,{"$f":"IFERROR(INDEX(кесте_оқиғалары[],SMALL(IF(Күндер=C$6,ROW(Күндер)),ROW(4:4))-Кесте_жолының_басы,4),\"\")","v":""},null,null,{"$f":"IFERROR(INDEX(кесте_оқиғалары[],SMALL(IF(Күндер=F$6,ROW(Күндер)),ROW(4:4))-Кесте_жолының_басы,4),\"\")","v":""},null,null,{"$f":"IFERROR(INDEX(кесте_оқиғалары[],SMALL(IF(Күндер=I$6,ROW(Күндер)),ROW(4:4))-Кесте_жолының_басы,4),\"\")","v":""},null,null,{"$f":"IFERROR(INDEX(кесте_оқиғалары[],SMALL(IF(Күндер=L$6,ROW(Күндер)),ROW(4:4))-Кесте_жолының_басы,4),\"\")","v":""},null,null,{"$f":"IFERROR(INDEX(кесте_оқиғалары[],SMALL(IF(Күндер=O$6,ROW(Күндер)),ROW(4:4))-Кесте_жолының_басы,4),\"\")","v":""},null,null,{"$f":"IFERROR(INDEX(кесте_оқиғалары[],SMALL(IF(Күндер=R$6,ROW(Күндер)),ROW(4:4))-Кесте_жолының_басы,4),\"\")","v":""},null,null,{"$f":"IFERROR(INDEX(кесте_оқиғалары[],SMALL(IF(Күндер=U$6,ROW(Күндер)),ROW(4:4))-Кесте_жолының_басы,4),\"\")","v":""}]
[null,null,{"$f":"U6+1","v":"2016-07-04"},null,null,{"$f":"C11+1","v":"2016-07-05"},null,null,{"$f":"F11+1","v":"2016-07-06"},null,null,{"$f":"I11+1","v":"2016-07-07"},null,null,{"$f":"L11+1","v":"2016-07-08"},null,null,{"$f":"O11+1","v":"2016-07-09"},null,null,{"$f":"R11+1","v":"2016-07-10"}]
[null,null,{"$f":"IFERROR(INDEX(кесте_оқиғалары[],SMALL(IF(Күндер=C$11,ROW(Күндер)),ROW(1:1))-Кесте_жолының_басы,4),\"\")","v":""},null,null,{"$f":"IFERROR(INDEX(кесте_оқиғалары[],SMALL(IF(Күндер=F$11,ROW(Күндер)),ROW(1:1))-Кесте_жолының_басы,4),\"\")","v":""},null,null,{"$f":"IFERROR(INDEX(кесте_оқиғалары[],SMALL(IF(Күндер=I$11,ROW(Күндер)),ROW(1:1))-Кесте_жолының_басы,4),\"\")","v":""},null,null,{"$f":"IFERROR(INDEX(кесте_оқиғалары[],SMALL(IF(Күндер=L$11,ROW(Күндер)),ROW(1:1))-Кесте_жолының_басы,4),\"\")","v":""},null,null,{"$f":"IFERROR(INDEX(кесте_оқиғалары[],SMALL(IF(Күндер=O$11,ROW(Күндер)),ROW(1:1))-Кесте_жолының_басы,4),\"\")","v":"Қалалық кеңес"},null,null,{"$f":"IFERROR(INDEX(кесте_оқиғалары[],SMALL(IF(Күндер=R$11,ROW(Күндер)),ROW(1:1))-Кесте_жолының_басы,4),\"\")","v":""},null,null,{"$f":"IFERROR(INDEX(кесте_оқиғалары[],SMALL(IF(Күндер=U$11,ROW(Күндер)),ROW(1:1))-Кесте_жолының_басы,4),\"\")","v":""}]
[null,null,{"$f":"IFERROR(INDEX(кесте_оқиғалары[],SMALL(IF(Күндер=C$11,ROW(Күндер)),ROW(2:2))-Кесте_жолының_басы,4),\"\")","v":""},null,null,{"$f":"IFERROR(INDEX(кесте_оқиғалары[],SMALL(IF(Күндер=F$11,ROW(Күндер)),ROW(2:2))-Кесте_жолының_басы,4),\"\")","v":""},null,null,{"$f":"IFERROR(INDEX(кесте_оқиғалары[],SMALL(IF(Күндер=I$11,ROW(Күндер)),ROW(2:2))-Кесте_жолының_басы,4),\"\")","v":""},null,null,{"$f":"IFERROR(INDEX(кесте_оқиғалары[],SMALL(IF(Күндер=L$11,ROW(Күндер)),ROW(2:2))-Кесте_жолының_басы,4),\"\")","v":""},null,null,{"$f":"IFERROR(INDEX(кесте_оқиғалары[],SMALL(IF(Күндер=O$11,ROW(Күндер)),ROW(2:2))-Кесте_жолының_басы,4),\"\")","v":""},null,null,{"$f":"IFERROR(INDEX(кесте_оқиғалары[],SMALL(IF(Күндер=R$11,ROW(Күндер)),ROW(2:2))-Кесте_жолының_басы,4),\"\")","v":""},null,null,{"$f":"IFERROR(INDEX(кесте_оқиғалары[],SMALL(IF(Күндер=U$11,ROW(Күндер)),ROW(2:2))-Кесте_жолының_басы,4),\"\")","v":""}]
[null,null,{"$f":"IFERROR(INDEX(кесте_оқиғалары[],SMALL(IF(Күндер=C$11,ROW(Күндер)),ROW(3:3))-Кесте_жолының_басы,4),\"\")","v":""},null,null,{"$f":"IFERROR(INDEX(кесте_оқиғалары[],SMALL(IF(Күндер=F$11,ROW(Күндер)),ROW(3:3))-Кесте_жолының_басы,4),\"\")","v":""},null,null,{"$f":"IFERROR(INDEX(кесте_оқиғалары[],SMALL(IF(Күндер=I$11,ROW(Күндер)),ROW(3:3))-Кесте_жолының_басы,4),\"\")","v":""},null,null,{"$f":"IFERROR(INDEX(кесте_оқиғалары[],SMALL(IF(Күндер=L$11,ROW(Күндер)),ROW(3:3))-Кесте_жолының_басы,4),\"\")","v":""},null,null,{"$f":"IFERROR(INDEX(кесте_оқиғалары[],SMALL(IF(Күндер=O$11,ROW(Күндер)),ROW(3:3))-Кесте_жолының_басы,4),\"\")","v":""},null,null,{"$f":"IFERROR(INDEX(кесте_оқиғалары[],SMALL(IF(Күндер=R$11,ROW(Күндер)),ROW(3:3))-Кесте_жолының_басы,4),\"\")","v":""},null,null,{"$f":"IFERROR(INDEX(кесте_оқиғалары[],SMALL(IF(Күндер=U$11,ROW(Күндер)),ROW(3:3))-Кесте_жолының_басы,4),\"\")","v":""}]
[null,null,{"$f":"IFERROR(INDEX(кесте_оқиғалары[],SMALL(IF(Күндер=C$11,ROW(Күндер)),ROW(4:4))-Кесте_жолының_басы,4),\"\")","v":""},null,null,{"$f":"IFERROR(INDEX(кесте_оқиғалары[],SMALL(IF(Күндер=F$11,ROW(Күндер)),ROW(4:4))-Кесте_жолының_басы,4),\"\")","v":""},null,null,{"$f":"IFERROR(INDEX(кесте_оқиғалары[],SMALL(IF(Күндер=I$11,ROW(Күндер)),ROW(4:4))-Кесте_жолының_басы,4),\"\")","v":""},null,null,{"$f":"IFERROR(INDEX(кесте_оқиғалары[],SMALL(IF(Күндер=L$11,ROW(Күндер)),ROW(4:4))-Кесте_жолының_басы,4),\"\")","v":""},null,null,{"$f":"IFERROR(INDEX(кесте_оқиғалары[],SMALL(IF(Күндер=O$11,ROW(Күндер)),ROW(4:4))-Кесте_жолының_басы,4),\"\")","v":""},null,null,{"$f":"IFERROR(INDEX(кесте_оқиғалары[],SMALL(IF(Күндер=R$11,ROW(Күндер)),ROW(4:4))-Кесте_жолының_басы,4),\"\")","v":""},null,null,{"$f":"IFERROR(INDEX(кесте_оқиғалары[],SMALL(IF(Күндер=U$11,ROW(Күндер)),ROW(4:4))-Кесте_жолының_басы,4),\"\")","v":""}]
[null,null,{"$f":"U11+1","v":"2016-07-11"},null,null,{"$f":"C16+1","v":"2016-07-12"},null,null,{"$f":"F16+1","v":"2016-07-13"},null,null,{"$f":"I16+1","v":"2016-07-14"},null,null,{"$f":"L16+1","v":"2016-07-15"},null,null,{"$f":"O16+1","v":"2016-07-16"},null,null,{"$f":"R16+1","v":"2016-07-17"}]
[null,null,{"$f":"IFERROR(INDEX(кесте_оқиғалары[],SMALL(IF(Күндер=C$16,ROW(Күндер)),ROW(1:1))-Кесте_жолының_басы,4),\"\")","v":"Сауда палатасы Екінші таңғы ас"},null,null,{"$f":"IFERROR(INDEX(кесте_оқиғалары[],SMALL(IF(Күндер=F$16,ROW(Күндер)),ROW(1:1))-Кесте_жолының_басы,4),\"\")","v":"Антиквариаттар көрсетілімі"},null,null,{"$f":"IFERROR(INDEX(кесте_оқиғалары[],SMALL(IF(Күндер=I$16,ROW(Күндер)),ROW(1:1))-Кесте_жолының_басы,4),\"\")","v":""},null,null,{"$f":"IFERROR(INDEX(кесте_оқиғалары[],SMALL(IF(Күндер=L$16,ROW(Күндер)),ROW(1:1))-Кесте_жолының_басы,4),\"\")","v":"Қауымдастық жұмыс орны"},null,null,{"$f":"IFERROR(INDEX(кесте_оқиғалары[],SMALL(IF(Күндер=O$16,ROW(Күндер)),ROW(1:1))-Кесте_жолының_басы,4),\"\")","v":"Қалалық кеңес"},null,null,{"$f":"IFERROR(INDEX(кесте_оқиғалары[],SMALL(IF(Күндер=R$16,ROW(Күндер)),ROW(1:1))-Кесте_жолының_басы,4),\"\")","v":""},null,null,{"$f":"IFERROR(INDEX(кесте_оқиғалары[],SMALL(IF(Күндер=U$16,ROW(Күндер)),ROW(1:1))-Кесте_жолының_басы,4),\"\")","v":""}]
[null,null,{"$f":"IFERROR(INDEX(кесте_оқиғалары[],SMALL(IF(Күндер=C$16,ROW(Күндер)),ROW(2:2))-Кесте_жолының_басы,4),\"\")","v":""},null,null,{"$f":"IFERROR(INDEX(кесте_оқиғалары[],SMALL(IF(Күндер=F$16,ROW(Күндер)),ROW(2:2))-Кесте_жолының_басы,4),\"\")","v":""},null,null,{"$f":"IFERROR(INDEX(кесте_оқиғалары[],SMALL(IF(Күндер=I$16,ROW(Күндер)),ROW(2:2))-Кесте_жолының_басы,4),\"\")","v":""},null,null,{"$f":"IFERROR(INDEX(кесте_оқиғалары[],SMALL(IF(Күндер=L$16,ROW(Күндер)),ROW(2:2))-Кесте_жолының_басы,4),\"\")","v":""},null,null,{"$f":"IFERROR(INDEX(кесте_оқиғалары[],SMALL(IF(Күндер=O$16,ROW(Күндер)),ROW(2:2))-Кесте_жолының_басы,4),\"\")","v":""},null,null,{"$f":"IFERROR(INDEX(кесте_оқиғалары[],SMALL(IF(Күндер=R$16,ROW(Күндер)),ROW(2:2))-Кесте_жолының_басы,4),\"\")","v":""},null,null,{"$f":"IFERROR(INDEX(кесте_оқиғалары[],SMALL(IF(Күндер=U$16,ROW(Күндер)),ROW(2:2))-Кесте_жолының_басы,4),\"\")","v":""}]
[null,null,{"$f":"IFERROR(INDEX(кесте_оқиғалары[],SMALL(IF(Күндер=C$16,ROW(Күндер)),ROW(3:3))-Кесте_жолының_басы,4),\"\")","v":""},null,null,{"$f":"IFERROR(INDEX(кесте_оқиғалары[],SMALL(IF(Күндер=F$16,ROW(Күндер)),ROW(3:3))-Кесте_жолының_басы,4),\"\")","v":""},null,null,{"$f":"IFERROR(INDEX(кесте_оқиғалары[],SMALL(IF(Күндер=I$16,ROW(Күндер)),ROW(3:3))-Кесте_жолының_басы,4),\"\")","v":""},null,null,{"$f":"IFERROR(INDEX(кесте_оқиғалары[],SMALL(IF(Күндер=L$16,ROW(Күндер)),ROW(3:3))-Кесте_жолының_басы,4),\"\")","v":""},null,null,{"$f":"IFERROR(INDEX(кесте_оқиғалары[],SMALL(IF(Күндер=O$16,ROW(Күндер)),ROW(3:3))-Кесте_жолының_басы,4),\"\")","v":""},null,null,{"$f":"IFERROR(INDEX(кесте_оқиғалары[],SMALL(IF(Күндер=R$16,ROW(Күндер)),ROW(3:3))-Кесте_жолының_басы,4),\"\")","v":""},null,null,{"$f":"IFERROR(INDEX(кесте_оқиғалары[],SMALL(IF(Күндер=U$16,ROW(Күндер)),ROW(3:3))-Кесте_жолының_басы,4),\"\")","v":""}]
[null,null,{"$f":"IFERROR(INDEX(кесте_оқиғалары[],SMALL(IF(Күндер=C$16,ROW(Күндер)),ROW(4:4))-Кесте_жолының_басы,4),\"\")","v":""},null,null,{"$f":"IFERROR(INDEX(кесте_оқиғалары[],SMALL(IF(Күндер=F$16,ROW(Күндер)),ROW(4:4))-Кесте_жолының_басы,4),\"\")","v":""},null,null,{"$f":"IFERROR(INDEX(кесте_оқиғалары[],SMALL(IF(Күндер=I$16,ROW(Күндер)),ROW(4:4))-Кесте_жолының_басы,4),\"\")","v":""},null,null,{"$f":"IFERROR(INDEX(кесте_оқиғалары[],SMALL(IF(Күндер=L$16,ROW(Күндер)),ROW(4:4))-Кесте_жолының_басы,4),\"\")","v":""},null,null,{"$f":"IFERROR(INDEX(кесте_оқиғалары[],SMALL(IF(Күндер=O$16,ROW(Күндер)),ROW(4:4))-Кесте_жолының_басы,4),\"\")","v":""},null,null,{"$f":"IFERROR(INDEX(кесте_оқиғалары[],SMALL(IF(Күндер=R$16,ROW(Күндер)),ROW(4:4))-Кесте_жолының_басы,4),\"\")","v":""},null,null,{"$f":"IFERROR(INDEX(кесте_оқиғалары[],SMALL(IF(Күндер=U$16,ROW(Күндер)),ROW(4:4))-Кесте_жолының_басы,4),\"\")","v":""}]
[null,null,{"$f":"U16+1","v":"2016-07-18"},null,null,{"$f":"C21+1","v":"2016-07-19"},null,null,{"$f":"F21+1","v":"2016-07-20"},null,null,{"$f":"I21+1","v":"2016-07-21"},null,null,{"$f":"L21+1","v":"2016-07-22"},null,null,{"$f":"O21+1","v":"2016-07-23"},null,null,{"$f":"R21+1","v":"2016-07-24"}]
[null,null,{"$f":"IFERROR(INDEX(кесте_оқиғалары[],SMALL(IF(Күндер=C$21,ROW(Күндер)),ROW(1:1))-Кесте_жолының_басы,4),\"\")","v":""},null,null,{"$f":"IFERROR(INDEX(кесте_оқиғалары[],SMALL(IF(Күндер=F$21,ROW(Күндер)),ROW(1:1))-Кесте_жолының_басы,4),\"\")","v":"Стратегиялық жоспарлау жұмыс орны"},null,null,{"$f":"IFERROR(INDEX(кесте_оқиғалары[],SMALL(IF(Күндер=I$21,ROW(Күндер)),ROW(1:1))-Кесте_жолының_басы,4),\"\")","v":"Саябақты тазалау"},null,null,{"$f":"IFERROR(INDEX(кесте_оқиғалары[],SMALL(IF(Күндер=L$21,ROW(Күндер)),ROW(1:1))-Кесте_жолының_басы,4),\"\")","v":""},null,null,{"$f":"IFERROR(INDEX(кесте_оқиғалары[],SMALL(IF(Күндер=O$21,ROW(Күндер)),ROW(1:1))-Кесте_жолының_басы,4),\"\")","v":"Қалалық кеңес"},null,null,{"$f":"IFERROR(INDEX(кесте_оқиғалары[],SMALL(IF(Күндер=R$21,ROW(Күндер)),ROW(1:1))-Кесте_жолының_басы,4),\"\")","v":""},null,null,{"$f":"IFERROR(INDEX(кесте_оқиғалары[],SMALL(IF(Күндер=U$21,ROW(Күндер)),ROW(1:1))-Кесте_жолының_басы,4),\"\")","v":""}]
[null,null,{"$f":"IFERROR(INDEX(кесте_оқиғалары[],SMALL(IF(Күндер=C$21,ROW(Күндер)),ROW(2:2))-Кесте_жолының_басы,4),\"\")","v":""},null,null,{"$f":"IFERROR(INDEX(кесте_оқиғалары[],SMALL(IF(Күндер=F$21,ROW(Күндер)),ROW(2:2))-Кесте_жолының_басы,4),\"\")","v":""},null,null,{"$f":"IFERROR(INDEX(кесте_оқиғалары[],SMALL(IF(Күндер=I$21,ROW(Күндер)),ROW(2:2))-Кесте_жолының_басы,4),\"\")","v":""},null,null,{"$f":"IFERROR(INDEX(кесте_оқиғалары[],SMALL(IF(Күндер=L$21,ROW(Күндер)),ROW(2:2))-Кесте_жолының_басы,4),\"\")","v":""},null,null,{"$f":"IFERROR(INDEX(кесте_оқиғалары[],SMALL(IF(Күндер=O$21,ROW(Күндер)),ROW(2:2))-Кесте_жолының_басы,4),\"\")","v":""},null,null,{"$f":"IFERROR(INDEX(кесте_оқиғалары[],SMALL(IF(Күндер=R$21,ROW(Күндер)),ROW(2:2))-Кесте_жолының_басы,4),\"\")","v":""},null,null,{"$f":"IFERROR(INDEX(кесте_оқиғалары[],SMALL(IF(Күндер=U$21,ROW(Күндер)),ROW(2:2))-Кесте_жолының_басы,4),\"\")","v":""}]
[null,null,{"$f":"IFERROR(INDEX(кесте_оқиғалары[],SMALL(IF(Күндер=C$21,ROW(Күндер)),ROW(3:3))-Кесте_жолының_басы,4),\"\")","v":""},null,null,{"$f":"IFERROR(INDEX(кесте_оқиғалары[],SMALL(IF(Күндер=F$21,ROW(Күндер)),ROW(3:3))-Кесте_жолының_басы,4),\"\")","v":""},null,null,{"$f":"IFERROR(INDEX(кесте_оқиғалары[],SMALL(IF(Күндер=I$21,ROW(Күндер)),ROW(3:3))-Кесте_жолының_басы,4),\"\")","v":""},null,null,{"$f":"IFERROR(INDEX(кесте_оқиғалары[],SMALL(IF(Күндер=L$21,ROW(Күндер)),ROW(3:3))-Кесте_жолының_басы,4),\"\")","v":""},null,null,{"$f":"IFERROR(INDEX(кесте_оқиғалары[],SMALL(IF(Күндер=O$21,ROW(Күндер)),ROW(3:3))-Кесте_жолының_басы,4),\"\")","v":""},null,null,{"$f":"IFERROR(INDEX(кесте_оқиғалары[],SMALL(IF(Күндер=R$21,ROW(Күндер)),ROW(3:3))-Кесте_жолының_басы,4),\"\")","v":""},null,null,{"$f":"IFERROR(INDEX(кесте_оқиғалары[],SMALL(IF(Күндер=U$21,ROW(Күндер)),ROW(3:3))-Кесте_жолының_басы,4),\"\")","v":""}]
[null,null,{"$f":"IFERROR(INDEX(кесте_оқиғалары[],SMALL(IF(Күндер=C$21,ROW(Күндер)),ROW(4:4))-Кесте_жолының_басы,4),\"\")","v":""},null,null,{"$f":"IFERROR(INDEX(кесте_оқиғалары[],SMALL(IF(Күндер=F$21,ROW(Күндер)),ROW(4:4))-Кесте_жолының_басы,4),\"\")","v":""},null,null,{"$f":"IFERROR(INDEX(кесте_оқиғалары[],SMALL(IF(Күндер=I$21,ROW(Күндер)),ROW(4:4))-Кесте_жолының_басы,4),\"\")","v":""},null,null,{"$f":"IFERROR(INDEX(кесте_оқиғалары[],SMALL(IF(Күндер=L$21,ROW(Күндер)),ROW(4:4))-Кесте_жолының_басы,4),\"\")","v":""},null,null,{"$f":"IFERROR(INDEX(кесте_оқиғалары[],SMALL(IF(Күндер=O$21,ROW(Күндер)),ROW(4:4))-Кесте_жолының_басы,4),\"\")","v":""},null,null,{"$f":"IFERROR(INDEX(кесте_оқиғалары[],SMALL(IF(Күндер=R$21,ROW(Күндер)),ROW(4:4))-Кесте_жолының_басы,4),\"\")","v":""},null,null,{"$f":"IFERROR(INDEX(кесте_оқиғалары[],SMALL(IF(Күндер=U$21,ROW(Күндер)),ROW(4:4))-Кесте_жолының_басы,4),\"\")","v":""}]
[null,null,{"$f":"U21+1","v":"2016-07-25"},null,null,{"$f":"C26+1","v":"2016-07-26"},null,null,{"$f":"F26+1","v":"2016-07-27"},null,null,{"$f":"I26+1","v":"2016-07-28"},null,null,{"$f":"L26+1","v":"2016-07-29"},null,null,{"$f":"O26+1","v":"2016-07-30"},null,null,{"$f":"R26+1","v":"2016-07-31"}]
[null,null,{"$f":"IFERROR(INDEX(кесте_оқиғалары[],SMALL(IF(Күндер=C$26,ROW(Күндер)),ROW(1:1))-Кесте_жолының_басы,4),\"\")","v":""},null,null,{"$f":"IFERROR(INDEX(кесте_оқиғалары[],SMALL(IF(Күндер=F$26,ROW(Күндер)),ROW(1:1))-Кесте_жолының_басы,4),\"\")","v":"Қаланың іскерлік орталығына саяхат"},null,null,{"$f":"IFERROR(INDEX(кесте_оқиғалары[],SMALL(IF(Күндер=I$26,ROW(Күндер)),ROW(1:1))-Кесте_жолының_басы,4),\"\")","v":""},null,null,{"$f":"IFERROR(INDEX(кесте_оқиғалары[],SMALL(IF(Күндер=L$26,ROW(Күндер)),ROW(1:1))-Кесте_жолының_басы,4),\"\")","v":""},null,null,{"$f":"IFERROR(INDEX(кесте_оқиғалары[],SMALL(IF(Күндер=O$26,ROW(Күндер)),ROW(1:1))-Кесте_жолының_басы,4),\"\")","v":"Қалалық кеңес"},null,null,{"$f":"IFERROR(INDEX(кесте_оқиғалары[],SMALL(IF(Күндер=R$26,ROW(Күндер)),ROW(1:1))-Кесте_жолының_басы,4),\"\")","v":""},null,null,{"$f":"IFERROR(INDEX(кесте_оқиғалары[],SMALL(IF(Күндер=U$26,ROW(Күндер)),ROW(1:1))-Кесте_жолының_басы,4),\"\")","v":""}]
[null,null,{"$f":"IFERROR(INDEX(кесте_оқиғалары[],SMALL(IF(Күндер=C$26,ROW(Күндер)),ROW(2:2))-Кесте_жолының_басы,4),\"\")","v":""},null,null,{"$f":"IFERROR(INDEX(кесте_оқиғалары[],SMALL(IF(Күндер=F$26,ROW(Күндер)),ROW(2:2))-Кесте_жолының_басы,4),\"\")","v":"Бірнеше сыраханаға бару"},null,null,{"$f":"IFERROR(INDEX(кесте_оқиғалары[],SMALL(IF(Күндер=I$26,ROW(Күндер)),ROW(2:2))-Кесте_жолының_басы,4),\"\")","v":""},null,null,{"$f":"IFERROR(INDEX(кесте_оқиғалары[],SMALL(IF(Күндер=L$26,ROW(Күндер)),ROW(2:2))-Кесте_жолының_басы,4),\"\")","v":""},null,null,{"$f":"IFERROR(INDEX(кесте_оқиғалары[],SMALL(IF(Күндер=O$26,ROW(Күндер)),ROW(2:2))-Кесте_жолының_басы,4),\"\")","v":""},null,null,{"$f":"IFERROR(INDEX(кесте_оқиғалары[],SMALL(IF(Күндер=R$26,ROW(Күндер)),ROW(2:2))-Кесте_жолының_басы,4),\"\")","v":""},null,null,{"$f":"IFERROR(INDEX(кесте_оқиғалары[],SMALL(IF(Күндер=U$26,ROW(Күндер)),ROW(2:2))-Кесте_жолының_басы,4),\"\")","v":""}]
[null,null,{"$f":"IFERROR(INDEX(кесте_оқиғалары[],SMALL(IF(Күндер=C$26,ROW(Күндер)),ROW(3:3))-Кесте_жолының_басы,4),\"\")","v":""},null,null,{"$f":"IFERROR(INDEX(кесте_оқиғалары[],SMALL(IF(Күндер=F$26,ROW(Күндер)),ROW(3:3))-Кесте_жолының_басы,4),\"\")","v":""},null,null,{"$f":"IFERROR(INDEX(кесте_оқиғалары[],SMALL(IF(Күндер=I$26,ROW(Күндер)),ROW(3:3))-Кесте_жолының_басы,4),\"\")","v":""},null,null,{"$f":"IFERROR(INDEX(кесте_оқиғалары[],SMALL(IF(Күндер=L$26,ROW(Күндер)),ROW(3:3))-Кесте_жолының_басы,4),\"\")","v":""},null,null,{"$f":"IFERROR(INDEX(кесте_оқиғалары[],SMALL(IF(Күндер=O$26,ROW(Күндер)),ROW(3:3))-Кесте_жолының_басы,4),\"\")","v":""},null,null,{"$f":"IFERROR(INDEX(кесте_оқиғалары[],SMALL(IF(Күндер=R$26,ROW(Күндер)),ROW(3:3))-Кесте_жолының_басы,4),\"\")","v":""},null,null,{"$f":"IFERROR(INDEX(кесте_оқиғалары[],SMALL(IF(Күндер=U$26,ROW(Күндер)),ROW(3:3))-Кесте_жолының_басы,4),\"\")","v":""}]
[null,null,{"$f":"IFERROR(INDEX(кесте_оқиғалары[],SMALL(IF(Күндер=C$26,ROW(Күндер)),ROW(4:4))-Кесте_жолының_басы,4),\"\")","v":""},null,null,{"$f":"IFERROR(INDEX(кесте_оқиғалары[],SMALL(IF(Күндер=F$26,ROW(Күндер)),ROW(4:4))-Кесте_жолының_басы,4),\"\")","v":""},null,null,{"$f":"IFERROR(INDEX(кесте_оқиғалары[],SMALL(IF(Күндер=I$26,ROW(Күндер)),ROW(4:4))-Кесте_жолының_басы,4),\"\")","v":""},null,null,{"$f":"IFERROR(INDEX(кесте_оқиғалары[],SMALL(IF(Күндер=L$26,ROW(Күндер)),ROW(4:4))-Кесте_жолының_басы,4),\"\")","v":""},null,null,{"$f":"IFERROR(INDEX(кесте_оқиғалары[],SMALL(IF(Күндер=O$26,ROW(Күндер)),ROW(4:4))-Кесте_жолының_басы,4),\"\")","v":""},null,null,{"$f":"IFERROR(INDEX(кесте_оқиғалары[],SMALL(IF(Күндер=R$26,ROW(Күндер)),ROW(4:4))-Кесте_жолының_басы,4),\"\")","v":""},null,null,{"$f":"IFERROR(INDEX(кесте_оқиғалары[],SMALL(IF(Күндер=U$26,ROW(Күндер)),ROW(4:4))-Кесте_жолының_басы,4),\"\")","v":""}]
[null,null,{"$f":"U26+1","v":"2016-08-01"},null,null,{"$f":"C31+1","v":"2016-08-02"},null,null,"ЖАЗБАЛАР:"]
[null,null,{"$f":"IFERROR(INDEX(кесте_оқиғалары[],SMALL(IF(Күндер=C$31,ROW(Күндер)),ROW(1:1))-Кесте_жолының_басы,4),\"\")","v":""},null,null,{"$f":"IFERROR(INDEX(кесте_оқиғалары[],SMALL(IF(Күндер=F$31,ROW(Күндер)),ROW(1:1))-Кесте_жолының_басы,4),\"\")","v":""}]
[null,null,{"$f":"IFERROR(INDEX(кесте_оқиғалары[],SMALL(IF(Күндер=C$31,ROW(Күндер)),ROW(2:2))-Кесте_жолының_басы,4),\"\")","v":""},null,null,{"$f":"IFERROR(INDEX(кесте_оқиғалары[],SMALL(IF(Күндер=F$31,ROW(Күндер)),ROW(2:2))-Кесте_жолының_басы,4),\"\")","v":""}]
[null,null,{"$f":"IFERROR(INDEX(кесте_оқиғалары[],SMALL(IF(Күндер=C$31,ROW(Күндер)),ROW(3:3))-Кесте_жолының_басы,4),\"\")","v":""},null,null,{"$f":"IFERROR(INDEX(кесте_оқиғалары[],SMALL(IF(Күндер=F$31,ROW(Күндер)),ROW(3:3))-Кесте_жолының_басы,4),\"\")","v":""}]
[null,null,{"$f":"IFERROR(INDEX(кесте_оқиғалары[],SMALL(IF(Күндер=C$31,ROW(Күндер)),ROW(4:4))-Кесте_жолының_басы,4),\"\")","v":""},null,null,{"$f":"IFERROR(INDEX(кесте_оқиғалары[],SMALL(IF(Күндер=F$31,ROW(Күндер)),ROW(4:4))-Кесте_жолының_басы,4),\"\")","v":""}]

{"sheet":"БАСЫП ШЫҒАРУ НҰСҚАСЫ","index":2,"n_rows":35,"n_cols":21,"rows_kept":35,"merged":[[1,5,1,11],[30,8,34,20]]}
[]
[null,null,{"$f":"Жылды_көру","v":2016},null,null,{"$f":"Айды_көру","v":"ШІЛДЕ"},0,0,0,0,0,0]
[]
[null,null,"ДС",null,null,"Сс",null,null,"СР",null,null,"БС",null,null,"Жм",null,null,"Сн",null,null,"ЖС"]
[]
[null,null,{"$f":"КҮНТІЗБЕ!C6","v":"2016-06-27"},{"$f":"КҮНТІЗБЕ!D6","v":0},{"$f":"КҮНТІЗБЕ!E6","v":0},{"$f":"КҮНТІЗБЕ!F6","v":"2016-06-28"},{"$f":"КҮНТІЗБЕ!G6","v":0},{"$f":"КҮНТІЗБЕ!H6","v":0},{"$f":"КҮНТІЗБЕ!I6","v":"2016-06-29"},{"$f":"КҮНТІЗБЕ!J6","v":0},{"$f":"КҮНТІЗБЕ!K6","v":0},{"$f":"КҮНТІЗБЕ!L6","v":"2016-06-30"},{"$f":"КҮНТІЗБЕ!M6","v":0},{"$f":"КҮНТІЗБЕ!N6","v":0},{"$f":"КҮНТІЗБЕ!O6","v":"2016-07-01"},{"$f":"КҮНТІЗБЕ!P6","v":0},{"$f":"КҮНТІЗБЕ!Q6","v":0},{"$f":"КҮНТІЗБЕ!R6","v":"2016-07-02"},{"$f":"КҮНТІЗБЕ!S6","v":0},{"$f":"КҮНТІЗБЕ!T6","v":0},{"$f":"КҮНТІЗБЕ!U6","v":"2016-07-03"}]
[null,null,{"$f":"КҮНТІЗБЕ!C7","v":""},{"$f":"КҮНТІЗБЕ!D7","v":0},{"$f":"КҮНТІЗБЕ!E7","v":0},{"$f":"КҮНТІЗБЕ!F7","v":""},{"$f":"КҮНТІЗБЕ!G7","v":0},{"$f":"КҮНТІЗБЕ!H7","v":0},{"$f":"КҮНТІЗБЕ!I7","v":""},{"$f":"КҮНТІЗБЕ!J7","v":0},{"$f":"КҮНТІЗБЕ!K7","v":0},{"$f":"КҮНТІЗБЕ!L7","v":""},{"$f":"КҮНТІЗБЕ!M7","v":0},{"$f":"КҮНТІЗБЕ!N7","v":0},{"$f":"КҮНТІЗБЕ!O7","v":"Қауымдастық бақшасы"},{"$f":"КҮНТІЗБЕ!P7","v":0},{"$f":"КҮНТІЗБЕ!Q7","v":0},{"$f":"КҮНТІЗБЕ!R7","v":"Қауымдастық бақшасы"},{"$f":"КҮНТІЗБЕ!S7","v":0},{"$f":"КҮНТІЗБЕ!T7","v":0},{"$f":"КҮНТІЗБЕ!U7","v":"Саябақтағы фильмдер кеші"}]
[null,null,{"$f":"КҮНТІЗБЕ!C8","v":""},{"$f":"КҮНТІЗБЕ!D8","v":"00:00:00"},{"$f":"КҮНТІЗБЕ!E8","v":"00:00:00"},{"$f":"КҮНТІЗБЕ!F8","v":""},{"$f":"КҮНТІЗБЕ!G8","v":"00:00:00"},{"$f":"КҮНТІЗБЕ!H8","v":"00:00:00"},{"$f":"КҮНТІЗБЕ!I8","v":""},{"$f":"КҮНТІЗБЕ!J8","v":"00:00:00"},{"$f":"КҮНТІЗБЕ!K8","v":"00:00:00"},{"$f":"КҮНТІЗБЕ!L8","v":""},{"$f":"КҮНТІЗБЕ!M8","v":"00:00:00"},{"$f":"КҮНТІЗБЕ!N8","v":"00:00:00"},{"$f":"КҮНТІЗБЕ!O8","v":"Қалалық кеңес"},{"$f":"КҮНТІЗБЕ!P8","v":"00:00:00"},{"$f":"КҮНТІЗБЕ!Q8","v":"00:00:00"},{"$f":"КҮНТІЗБЕ!R8","v":""},{"$f":"КҮНТІЗБЕ!S8","v":"00:00:00"},{"$f":"КҮНТІЗБЕ!T8","v":"00:00:00"},{"$f":"КҮНТІЗБЕ!U8","v":""}]
[null,null,{"$f":"КҮНТІЗБЕ!C9","v":""},{"$f":"КҮНТІЗБЕ!D9","v":0},{"$f":"КҮНТІЗБЕ!E9","v":0},{"$f":"КҮНТІЗБЕ!F9","v":""},{"$f":"КҮНТІЗБЕ!G9","v":0},{"$f":"КҮНТІЗБЕ!H9","v":0},{"$f":"КҮНТІЗБЕ!I9","v":""},{"$f":"КҮНТІЗБЕ!J9","v":0},{"$f":"КҮНТІЗБЕ!K9","v":0},{"$f":"КҮНТІЗБЕ!L9","v":""},{"$f":"КҮНТІЗБЕ!M9","v":0},{"$f":"КҮНТІЗБЕ!N9","v":0},{"$f":"КҮНТІЗБЕ!O9","v":""},{"$f":"КҮНТІЗБЕ!P9","v":0},{"$f":"КҮНТІЗБЕ!Q9","v":0},{"$f":"КҮНТІЗБЕ!R9","v":""},{"$f":"КҮНТІЗБЕ!S9","v":0},{"$f":"КҮНТІЗБЕ!T9","v":0},{"$f":"КҮНТІЗБЕ!U9","v":""}]
[null,null,{"$f":"КҮНТІЗБЕ!C10","v":""},{"$f":"КҮНТІЗБЕ!D10","v":0},{"$f":"КҮНТІЗБЕ!E10","v":0},{"$f":"КҮНТІЗБЕ!F10","v":""},{"$f":"КҮНТІЗБЕ!G10","v":0},{"$f":"КҮНТІЗБЕ!H10","v":0},{"$f":"КҮНТІЗБЕ!I10","v":""},{"$f":"КҮНТІЗБЕ!J10","v":0},{"$f":"КҮНТІЗБЕ!K10","v":0},{"$f":"КҮНТІЗБЕ!L10","v":""},{"$f":"КҮНТІЗБЕ!M10","v":0},{"$f":"КҮНТІЗБЕ!N10","v":0},{"$f":"КҮНТІЗБЕ!O10","v":""},{"$f":"КҮНТІЗБЕ!P10","v":0},{"$f":"КҮНТІЗБЕ!Q10","v":0},{"$f":"КҮНТІЗБЕ!R10","v":""},{"$f":"КҮНТІЗБЕ!S10","v":0},{"$f":"КҮНТІЗБЕ!T10","v":0},{"$f":"КҮНТІЗБЕ!U10","v":""}]
[null,null,{"$f":"КҮНТІЗБЕ!C11","v":"2016-07-04"},{"$f":"КҮНТІЗБЕ!D11","v":0},{"$f":"КҮНТІЗБЕ!E11","v":0},{"$f":"КҮНТІЗБЕ!F11","v":"2016-07-05"},{"$f":"КҮНТІЗБЕ!G11","v":0},{"$f":"КҮНТІЗБЕ!H11","v":0},{"$f":"КҮНТІЗБЕ!I11","v":"2016-07-06"},{"$f":"КҮНТІЗБЕ!J11","v":0},{"$f":"КҮНТІЗБЕ!K11","v":0},{"$f":"КҮНТІЗБЕ!L11","v":"2016-07-07"},{"$f":"КҮНТІЗБЕ!M11","v":0},{"$f":"КҮНТІЗБЕ!N11","v":0},{"$f":"КҮНТІЗБЕ!O11","v":"2016-07-08"},{"$f":"КҮНТІЗБЕ!P11","v":0},{"$f":"КҮНТІЗБЕ!Q11","v":0},{"$f":"КҮНТІЗБЕ!R11","v":"2016-07-09"},{"$f":"КҮНТІЗБЕ!S11","v":0},{"$f":"КҮНТІЗБЕ!T11","v":0},{"$f":"КҮНТІЗБЕ!U11","v":"2016-07-10"}]
[null,null,{"$f":"КҮНТІЗБЕ!C12","v":""},{"$f":"КҮНТІЗБЕ!D12","v":0},{"$f":"КҮНТІЗБЕ!E12","v":0},{"$f":"КҮНТІЗБЕ!F12","v":""},{"$f":"КҮНТІЗБЕ!G12","v":0},{"$f":"КҮНТІЗБЕ!H12","v":0},{"$f":"КҮНТІЗБЕ!I12","v":""},{"$f":"КҮНТІЗБЕ!J12","v":0},{"$f":"КҮНТІЗБЕ!K12","v":0},{"$f":"КҮНТІЗБЕ!L12","v":""},{"$f":"КҮНТІЗБЕ!M12","v":0},{"$f":"КҮНТІЗБЕ!N12","v":0},{"$f":"КҮНТІЗБЕ!O12","v":"Қалалық кеңес"},{"$f":"КҮНТІЗБЕ!P12","v":0},{"$f":"КҮНТІЗБЕ!Q12","v":0},{"$f":"КҮНТІЗБЕ!R12","v":""},{"$f":"КҮНТІЗБЕ!S12","v":0},{"$f":"КҮНТІЗБЕ!T12","v":0},{"$f":"КҮНТІЗБЕ!U12","v":""}]
[null,null,{"$f":"КҮНТІЗБЕ!C13","v":""},{"$f":"КҮНТІЗБЕ!D13","v":0},{"$f":"КҮНТІЗБЕ!E13","v":0},{"$f":"КҮНТІЗБЕ!F13","v":""},{"$f":"КҮНТІЗБЕ!G13","v":0},{"$f":"КҮНТІЗБЕ!H13","v":0},{"$f":"КҮНТІЗБЕ!I13","v":""},{"$f":"КҮНТІЗБЕ!J13","v":0},{"$f":"КҮНТІЗБЕ!K13","v":0},{"$f":"КҮНТІЗБЕ!L13","v":""},{"$f":"КҮНТІЗБЕ!M13","v":0},{"$f":"КҮНТІЗБЕ!N13","v":0},{"$f":"КҮНТІЗБЕ!O13","v":""},{"$f":"КҮНТІЗБЕ!P13","v":0},{"$f":"КҮНТІЗБЕ!Q13","v":0},{"$f":"КҮНТІЗБЕ!R13","v":""},{"$f":"КҮНТІЗБЕ!S13","v":0},{"$f":"КҮНТІЗБЕ!T13","v":0},{"$f":"КҮНТІЗБЕ!U13","v":""}]
[null,null,{"$f":"КҮНТІЗБЕ!C14","v":""},{"$f":"КҮНТІЗБЕ!D14","v":0},{"$f":"КҮНТІЗБЕ!E14","v":0},{"$f":"КҮНТІЗБЕ!F14","v":""},{"$f":"КҮНТІЗБЕ!G14","v":0},{"$f":"КҮНТІЗБЕ!H14","v":0},{"$f":"КҮНТІЗБЕ!I14","v":""},{"$f":"КҮНТІЗБЕ!J14","v":0},{"$f":"КҮНТІЗБЕ!K14","v":0},{"$f":"КҮНТІЗБЕ!L14","v":""},{"$f":"КҮНТІЗБЕ!M14","v":0},{"$f":"КҮНТІЗБЕ!N14","v":0},{"$f":"КҮНТІЗБЕ!O14","v":""},{"$f":"КҮНТІЗБЕ!P14","v":0},{"$f":"КҮНТІЗБЕ!Q14","v":0},{"$f":"КҮНТІЗБЕ!R14","v":""},{"$f":"КҮНТІЗБЕ!S14","v":0},{"$f":"КҮНТІЗБЕ!T14","v":0},{"$f":"КҮНТІЗБЕ!U14","v":""}]
[null,null,{"$f":"КҮНТІЗБЕ!C15","v":""},{"$f":"КҮНТІЗБЕ!D15","v":0},{"$f":"КҮНТІЗБЕ!E15","v":0},{"$f":"КҮНТІЗБЕ!F15","v":""},{"$f":"КҮНТІЗБЕ!G15","v":0},{"$f":"КҮНТІЗБЕ!H15","v":0},{"$f":"КҮНТІЗБЕ!I15","v":""},{"$f":"КҮНТІЗБЕ!J15","v":0},{"$f":"КҮНТІЗБЕ!K15","v":0},{"$f":"КҮНТІЗБЕ!L15","v":""},{"$f":"КҮНТІЗБЕ!M15","v":0},{"$f":"КҮНТІЗБЕ!N15","v":0},{"$f":"КҮНТІЗБЕ!O15","v":""},{"$f":"КҮНТІЗБЕ!P15","v":0},{"$f":"КҮНТІЗБЕ!Q15","v":0},{"$f":"КҮНТІЗБЕ!R15","v":""},{"$f":"КҮНТІЗБЕ!S15","v":0},{"$f":"КҮНТІЗБЕ!T15","v":0},{"$f":"КҮНТІЗБЕ!U15","v":""}]
[null,null,{"$f":"КҮНТІЗБЕ!C16","v":"2016-07-11"},{"$f":"КҮНТІЗБЕ!D16","v":0},{"$f":"КҮНТІЗБЕ!E16","v":0},{"$f":"КҮНТІЗБЕ!F16","v":"2016-07-12"},{"$f":"КҮНТІЗБЕ!G16","v":0},{"$f":"КҮНТІЗБЕ!H16","v":0},{"$f":"КҮНТІЗБЕ!I16","v":"2016-07-13"},{"$f":"КҮНТІЗБЕ!J16","v":0},{"$f":"КҮНТІЗБЕ!K16","v":0},{"$f":"КҮНТІЗБЕ!L16","v":"2016-07-14"},{"$f":"КҮНТІЗБЕ!M16","v":0},{"$f":"КҮНТІЗБЕ!N16","v":0},{"$f":"КҮНТІЗБЕ!O16","v":"2016-07-15"},{"$f":"КҮНТІЗБЕ!P16","v":0},{"$f":"КҮНТІЗБЕ!Q16","v":0},{"$f":"КҮНТІЗБЕ!R16","v":"2016-07-16"},{"$f":"КҮНТІЗБЕ!S16","v":0},{"$f":"КҮНТІЗБЕ!T16","v":0},{"$f":"КҮНТІЗБЕ!U16","v":"2016-07-17"}]
[null,null,{"$f":"КҮНТІЗБЕ!C17","v":"Сауда палатасы Екінші таңғы ас"},{"$f":"КҮНТІЗБЕ!D17","v":0},{"$f":"КҮНТІЗБЕ!E17","v":0},{"$f":"КҮНТІЗБЕ!F17","v":"Антиквариаттар көрсетілімі"},{"$f":"КҮНТІЗБЕ!G17","v":0},{"$f":"КҮНТІЗБЕ!H17","v":0},{"$f":"КҮНТІЗБЕ!I17","v":""},{"$f":"КҮНТІЗБЕ!J17","v":0},{"$f":"КҮНТІЗБЕ!K17","v":0},{"$f":"КҮНТІЗБЕ!L17","v":"Қауымдастық жұмыс орны"},{"$f":"КҮНТІЗБЕ!M17","v":0},{"$f":"КҮНТІЗБЕ!N17","v":0},{"$f":"КҮНТІЗБЕ!O17","v":"Қалалық кеңес"},{"$f":"КҮНТІЗБЕ!P17","v":0},{"$f":"КҮНТІЗБЕ!Q17","v":0},{"$f":"КҮНТІЗБЕ!R17","v":""},{"$f":"КҮНТІЗБЕ!S17","v":0},{"$f":"КҮНТІЗБЕ!T17","v":0},{"$f":"КҮНТІЗБЕ!U17","v":""}]
[null,null,{"$f":"КҮНТІЗБЕ!C18","v":""},{"$f":"КҮНТІЗБЕ!D18","v":0},{"$f":"КҮНТІЗБЕ!E18","v":0},{"$f":"КҮНТІЗБЕ!F18","v":""},{"$f":"КҮНТІЗБЕ!G18","v":0},{"$f":"КҮНТІЗБЕ!H18","v":0},{"$f":"КҮНТІЗБЕ!I18","v":""},{"$f":"КҮНТІЗБЕ!J18","v":0},{"$f":"КҮНТІЗБЕ!K18","v":0},{"$f":"КҮНТІЗБЕ!L18","v":""},{"$f":"КҮНТІЗБЕ!M18","v":0},{"$f":"КҮНТІЗБЕ!N18","v":0},{"$f":"КҮНТІЗБЕ!O18","v":""},{"$f":"КҮНТІЗБЕ!P18","v":0},{"$f":"КҮНТІЗБЕ!Q18","v":0},{"$f":"КҮНТІЗБЕ!R18","v":""},{"$f":"КҮНТІЗБЕ!S18","v":0},{"$f":"КҮНТІЗБЕ!T18","v":0},{"$f":"КҮНТІЗБЕ!U18","v":""}]
[null,null,{"$f":"КҮНТІЗБЕ!C19","v":""},{"$f":"КҮНТІЗБЕ!D19","v":0},{"$f":"КҮНТІЗБЕ!E19","v":0},{"$f":"КҮНТІЗБЕ!F19","v":""},{"$f":"КҮНТІЗБЕ!G19","v":0},{"$f":"КҮНТІЗБЕ!H19","v":0},{"$f":"КҮНТІЗБЕ!I19","v":""},{"$f":"КҮНТІЗБЕ!J19","v":0},{"$f":"КҮНТІЗБЕ!K19","v":0},{"$f":"КҮНТІЗБЕ!L19","v":""},{"$f":"КҮНТІЗБЕ!M19","v":0},{"$f":"КҮНТІЗБЕ!N19","v":0},{"$f":"КҮНТІЗБЕ!O19","v":""},{"$f":"КҮНТІЗБЕ!P19","v":0},{"$f":"КҮНТІЗБЕ!Q19","v":0},{"$f":"КҮНТІЗБЕ!R19","v":""},{"$f":"КҮНТІЗБЕ!S19","v":0},{"$f":"КҮНТІЗБЕ!T19","v":0},{"$f":"КҮНТІЗБЕ!U19","v":""}]
[null,null,{"$f":"КҮНТІЗБЕ!C20","v":""},{"$f":"КҮНТІЗБЕ!D20","v":0},{"$f":"КҮНТІЗБЕ!E20","v":0},{"$f":"КҮНТІЗБЕ!F20","v":""},{"$f":"КҮНТІЗБЕ!G20","v":0},{"$f":"КҮНТІЗБЕ!H20","v":0},{"$f":"КҮНТІЗБЕ!I20","v":""},{"$f":"КҮНТІЗБЕ!J20","v":0},{"$f":"КҮНТІЗБЕ!K20","v":0},{"$f":"КҮНТІЗБЕ!L20","v":""},{"$f":"КҮНТІЗБЕ!M20","v":0},{"$f":"КҮНТІЗБЕ!N20","v":0},{"$f":"КҮНТІЗБЕ!O20","v":""},{"$f":"КҮНТІЗБЕ!P20","v":0},{"$f":"КҮНТІЗБЕ!Q20","v":0},{"$f":"КҮНТІЗБЕ!R20","v":""},{"$f":"КҮНТІЗБЕ!S20","v":0},{"$f":"КҮНТІЗБЕ!T20","v":0},{"$f":"КҮНТІЗБЕ!U20","v":""}]
[null,null,{"$f":"КҮНТІЗБЕ!C21","v":"2016-07-18"},{"$f":"КҮНТІЗБЕ!D21","v":0},{"$f":"КҮНТІЗБЕ!E21","v":0},{"$f":"КҮНТІЗБЕ!F21","v":"2016-07-19"},{"$f":"КҮНТІЗБЕ!G21","v":0},{"$f":"КҮНТІЗБЕ!H21","v":0},{"$f":"КҮНТІЗБЕ!I21","v":"2016-07-20"},{"$f":"КҮНТІЗБЕ!J21","v":0},{"$f":"КҮНТІЗБЕ!K21","v":0},{"$f":"КҮНТІЗБЕ!L21","v":"2016-07-21"},{"$f":"КҮНТІЗБЕ!M21","v":0},{"$f":"КҮНТІЗБЕ!N21","v":0},{"$f":"КҮНТІЗБЕ!O21","v":"2016-07-22"},{"$f":"КҮНТІЗБЕ!P21","v":0},{"$f":"КҮНТІЗБЕ!Q21","v":0},{"$f":"КҮНТІЗБЕ!R21","v":"2016-07-23"},{"$f":"КҮНТІЗБЕ!S21","v":0},{"$f":"КҮНТІЗБЕ!T21","v":0},{"$f":"КҮНТІЗБЕ!U21","v":"2016-07-24"}]
[null,null,{"$f":"КҮНТІЗБЕ!C22","v":""},{"$f":"КҮНТІЗБЕ!D22","v":0},{"$f":"КҮНТІЗБЕ!E22","v":0},{"$f":"КҮНТІЗБЕ!F22","v":"Стратегиялық жоспарлау жұмыс орны"},{"$f":"КҮНТІЗБЕ!G22","v":0},{"$f":"КҮНТІЗБЕ!H22","v":0},{"$f":"КҮНТІЗБЕ!I22","v":"Саябақты тазалау"},{"$f":"КҮНТІЗБЕ!J22","v":0},{"$f":"КҮНТІЗБЕ!K22","v":0},{"$f":"КҮНТІЗБЕ!L22","v":""},{"$f":"КҮНТІЗБЕ!M22","v":0},{"$f":"КҮНТІЗБЕ!N22","v":0},{"$f":"КҮНТІЗБЕ!O22","v":"Қалалық кеңес"},{"$f":"КҮНТІЗБЕ!P22","v":0},{"$f":"КҮНТІЗБЕ!Q22","v":0},{"$f":"КҮНТІЗБЕ!R22","v":""},{"$f":"КҮНТІЗБЕ!S22","v":0},{"$f":"КҮНТІЗБЕ!T22","v":0},{"$f":"КҮНТІЗБЕ!U22","v":""}]
[null,null,{"$f":"КҮНТІЗБЕ!C23","v":""},{"$f":"КҮНТІЗБЕ!D23","v":0},{"$f":"КҮНТІЗБЕ!E23","v":0},{"$f":"КҮНТІЗБЕ!F23","v":""},{"$f":"КҮНТІЗБЕ!G23","v":0},{"$f":"КҮНТІЗБЕ!H23","v":0},{"$f":"КҮНТІЗБЕ!I23","v":""},{"$f":"КҮНТІЗБЕ!J23","v":0},{"$f":"КҮНТІЗБЕ!K23","v":0},{"$f":"КҮНТІЗБЕ!L23","v":""},{"$f":"КҮНТІЗБЕ!M23","v":0},{"$f":"КҮНТІЗБЕ!N23","v":0},{"$f":"КҮНТІЗБЕ!O23","v":""},{"$f":"КҮНТІЗБЕ!P23","v":0},{"$f":"КҮНТІЗБЕ!Q23","v":0},{"$f":"КҮНТІЗБЕ!R23","v":""},{"$f":"КҮНТІЗБЕ!S23","v":0},{"$f":"КҮНТІЗБЕ!T23","v":0},{"$f":"КҮНТІЗБЕ!U23","v":""}]
[null,null,{"$f":"КҮНТІЗБЕ!C24","v":""},{"$f":"КҮНТІЗБЕ!D24","v":0},{"$f":"КҮНТІЗБЕ!E24","v":0},{"$f":"КҮНТІЗБЕ!F24","v":""},{"$f":"КҮНТІЗБЕ!G24","v":0},{"$f":"КҮНТІЗБЕ!H24","v":0},{"$f":"КҮНТІЗБЕ!I24","v":""},{"$f":"КҮНТІЗБЕ!J24","v":0},{"$f":"КҮНТІЗБЕ!K24","v":0},{"$f":"КҮНТІЗБЕ!L24","v":""},{"$f":"КҮНТІЗБЕ!M24","v":0},{"$f":"КҮНТІЗБЕ!N24","v":0},{"$f":"КҮНТІЗБЕ!O24","v":""},{"$f":"КҮНТІЗБЕ!P24","v":0},{"$f":"КҮНТІЗБЕ!Q24","v":0},{"$f":"КҮНТІЗБЕ!R24","v":""},{"$f":"КҮНТІЗБЕ!S24","v":0},{"$f":"КҮНТІЗБЕ!T24","v":0},{"$f":"КҮНТІЗБЕ!U24","v":""}]
[null,null,{"$f":"КҮНТІЗБЕ!C25","v":""},{"$f":"КҮНТІЗБЕ!D25","v":0},{"$f":"КҮНТІЗБЕ!E25","v":0},{"$f":"КҮНТІЗБЕ!F25","v":""},{"$f":"КҮНТІЗБЕ!G25","v":0},{"$f":"КҮНТІЗБЕ!H25","v":0},{"$f":"КҮНТІЗБЕ!I25","v":""},{"$f":"КҮНТІЗБЕ!J25","v":0},{"$f":"КҮНТІЗБЕ!K25","v":0},{"$f":"КҮНТІЗБЕ!L25","v":""},{"$f":"КҮНТІЗБЕ!M25","v":0},{"$f":"КҮНТІЗБЕ!N25","v":0},{"$f":"КҮНТІЗБЕ!O25","v":""},{"$f":"КҮНТІЗБЕ!P25","v":0},{"$f":"КҮНТІЗБЕ!Q25","v":0},{"$f":"КҮНТІЗБЕ!R25","v":""},{"$f":"КҮНТІЗБЕ!S25","v":0},{"$f":"КҮНТІЗБЕ!T25","v":0},{"$f":"КҮНТІЗБЕ!U25","v":""}]
[null,null,{"$f":"КҮНТІЗБЕ!C26","v":"2016-07-25"},{"$f":"КҮНТІЗБЕ!D26","v":0},{"$f":"КҮНТІЗБЕ!E26","v":0},{"$f":"КҮНТІЗБЕ!F26","v":"2016-07-26"},{"$f":"КҮНТІЗБЕ!G26","v":0},{"$f":"КҮНТІЗБЕ!H26","v":0},{"$f":"КҮНТІЗБЕ!I26","v":"2016-07-27"},{"$f":"КҮНТІЗБЕ!J26","v":0},{"$f":"КҮНТІЗБЕ!K26","v":0},{"$f":"КҮНТІЗБЕ!L26","v":"2016-07-28"},{"$f":"КҮНТІЗБЕ!M26","v":0},{"$f":"КҮНТІЗБЕ!N26","v":0},{"$f":"КҮНТІЗБЕ!O26","v":"2016-07-29"},{"$f":"КҮНТІЗБЕ!P26","v":0},{"$f":"КҮНТІЗБЕ!Q26","v":0},{"$f":"КҮНТІЗБЕ!R26","v":"2016-07-30"},{"$f":"КҮНТІЗБЕ!S26","v":0},{"$f":"КҮНТІЗБЕ!T26","v":0},{"$f":"КҮНТІЗБЕ!U26","v":"2016-07-31"}]
[null,null,{"$f":"КҮНТІЗБЕ!C27","v":""},{"$f":"КҮНТІЗБЕ!D27","v":0},{"$f":"КҮНТІЗБЕ!E27","v":0},{"$f":"КҮНТІЗБЕ!F27","v":"Қаланың іскерлік орталығына саяхат"},{"$f":"КҮНТІЗБЕ!G27","v":0},{"$f":"КҮНТІЗБЕ!H27","v":0},{"$f":"КҮНТІЗБЕ!I27","v":""},{"$f":"КҮНТІЗБЕ!J27","v":0},{"$f":"КҮНТІЗБЕ!K27","v":0},{"$f":"КҮНТІЗБЕ!L27","v":""},{"$f":"КҮНТІЗБЕ!M27","v":0},{"$f":"КҮНТІЗБЕ!N27","v":0},{"$f":"КҮНТІЗБЕ!O27","v":"Қалалық кеңес"},{"$f":"КҮНТІЗБЕ!P27","v":0},{"$f":"КҮНТІЗБЕ!Q27","v":0},{"$f":"КҮНТІЗБЕ!R27","v":""},{"$f":"КҮНТІЗБЕ!S27","v":0},{"$f":"КҮНТІЗБЕ!T27","v":0},{"$f":"КҮНТІЗБЕ!U27","v":""}]
[null,null,{"$f":"КҮНТІЗБЕ!C28","v":""},{"$f":"КҮНТІЗБЕ!D28","v":0},{"$f":"КҮНТІЗБЕ!E28","v":0},{"$f":"КҮНТІЗБЕ!F28","v":"Бірнеше сыраханаға бару"},{"$f":"КҮНТІЗБЕ!G28","v":0},{"$f":"КҮНТІЗБЕ!H28","v":0},{"$f":"КҮНТІЗБЕ!I28","v":""},{"$f":"КҮНТІЗБЕ!J28","v":0},{"$f":"КҮНТІЗБЕ!K28","v":0},{"$f":"КҮНТІЗБЕ!L28","v":""},{"$f":"КҮНТІЗБЕ!M28","v":0},{"$f":"КҮНТІЗБЕ!N28","v":0},{"$f":"КҮНТІЗБЕ!O28","v":""},{"$f":"КҮНТІЗБЕ!P28","v":0},{"$f":"КҮНТІЗБЕ!Q28","v":0},{"$f":"КҮНТІЗБЕ!R28","v":""},{"$f":"КҮНТІЗБЕ!S28","v":0},{"$f":"КҮНТІЗБЕ!T28","v":0},{"$f":"КҮНТІЗБЕ!U28","v":""}]
[null,null,{"$f":"КҮНТІЗБЕ!C29","v":""},{"$f":"КҮНТІЗБЕ!D29","v":0},{"$f":"КҮНТІЗБЕ!E29","v":0},{"$f":"КҮНТІЗБЕ!F29","v":""},{"$f":"КҮНТІЗБЕ!G29","v":0},{"$f":"КҮНТІЗБЕ!H29","v":0},{"$f":"КҮНТІЗБЕ!I29","v":""},{"$f":"КҮНТІЗБЕ!J29","v":0},{"$f":"КҮНТІЗБЕ!K29","v":0},{"$f":"КҮНТІЗБЕ!L29","v":""},{"$f":"КҮНТІЗБЕ!M29","v":0},{"$f":"КҮНТІЗБЕ!N29","v":0},{"$f":"КҮНТІЗБЕ!O29","v":""},{"$f":"КҮНТІЗБЕ!P29","v":0},{"$f":"КҮНТІЗБЕ!Q29","v":0},{"$f":"КҮНТІЗБЕ!R29","v":""},{"$f":"КҮНТІЗБЕ!S29","v":0},{"$f":"КҮНТІЗБЕ!T29","v":0},{"$f":"КҮНТІЗБЕ!U29","v":""}]
[null,null,{"$f":"КҮНТІЗБЕ!C30","v":""},{"$f":"КҮНТІЗБЕ!D30","v":0},{"$f":"КҮНТІЗБЕ!E30","v":0},{"$f":"КҮНТІЗБЕ!F30","v":""},{"$f":"КҮНТІЗБЕ!G30","v":0},{"$f":"КҮНТІЗБЕ!H30","v":0},{"$f":"КҮНТІЗБЕ!I30","v":""},{"$f":"КҮНТІЗБЕ!J30","v":0},{"$f":"КҮНТІЗБЕ!K30","v":0},{"$f":"КҮНТІЗБЕ!L30","v":""},{"$f":"КҮНТІЗБЕ!M30","v":0},{"$f":"КҮНТІЗБЕ!N30","v":0},{"$f":"КҮНТІЗБЕ!O30","v":""},{"$f":"КҮНТІЗБЕ!P30","v":0},{"$f":"КҮНТІЗБЕ!Q30","v":0},{"$f":"КҮНТІЗБЕ!R30","v":""},{"$f":"КҮНТІЗБЕ!S30","v":0},{"$f":"КҮНТІЗБЕ!T30","v":0},{"$f":"КҮНТІЗБЕ!U30","v":""}]
[null,null,{"$f":"КҮНТІЗБЕ!C31","v":"2016-08-01"},{"$f":"КҮНТІЗБЕ!D31","v":0},{"$f":"КҮНТІЗБЕ!E31","v":0},{"$f":"КҮНТІЗБЕ!F31","v":"2016-08-02"},null,null,{"$f":"КҮНТІЗБЕ!I31","v":"ЖАЗБАЛАР:"}]
[null,null,{"$f":"КҮНТІЗБЕ!C32","v":""},{"$f":"КҮНТІЗБЕ!D32","v":0},{"$f":"КҮНТІЗБЕ!E32","v":0},{"$f":"КҮНТІЗБЕ!F32","v":""}]
[null,null,{"$f":"КҮНТІЗБЕ!C33","v":""},{"$f":"КҮНТІЗБЕ!D33","v":0},{"$f":"КҮНТІЗБЕ!E33","v":0},{"$f":"КҮНТІЗБЕ!F33","v":""}]
[null,null,{"$f":"КҮНТІЗБЕ!C34","v":""},{"$f":"КҮНТІЗБЕ!D34","v":0},{"$f":"КҮНТІЗБЕ!E34","v":0},{"$f":"КҮНТІЗБЕ!F34","v":""}]
[null,null,{"$f":"КҮНТІЗБЕ!C35","v":""},{"$f":"КҮНТІЗБЕ!D35","v":0},{"$f":"КҮНТІЗБЕ!E35","v":0},{"$f":"КҮНТІЗБЕ!F35","v":""}]

{"sheet":"ӘКІМШІ","index":3,"n_rows":14,"n_cols":3,"rows_kept":14,"hidden":true}
[]
[null,"АЙ","НӨМІР"]
[null,"ҚАҢТАР",1]
[null,"АҚПАН",2]
[null,"НАУРЫЗ",3]
[null,"СӘУІР",4]
[null,"МАМЫР",5]
[null,"МАУСЫМ",6]
[null,"ШІЛДЕ",7]
[null,"ТАМЫЗ",8]
[null,"ҚЫРКҮЙЕК",9]
[null,"ҚАЗАН",10]
[null,"ҚАРАША",11]
[null,"ЖЕЛТОҚСАН",12]